fUSD/lending_fUSD_20250716
["ID","MTS","AMOUNT","RATE_DAILY","PERIOD"]
[372430932,1752642639930,-569.0,0.00020962,2]
[372430934,1752642639939,-569.0,0.00020998,2]
[372430936,1752642639948,-10740.89860639,0.00021,2]
[372430938,1752642639957,-1129.0,0.00021,2]
[372430940,1752642639967,-509.204,0.00021137,2]
[372430943,1752642639977,-231.26086611,0.00021297,2]
[372430945,1752642639986,-1844.0,0.0002137,2]
[372430947,1752642639995,-170.0,0.00021456,2]
[372430948,1752642640005,-150.0,0.00021576,2]
[372430950,1752642640015,-187.48,0.0002158,2]
[372430952,1752642640024,-164.648036,0.00021612,8]
[372430955,1752642640034,-515.0,0.00021793,7]
[372430957,1752642640043,-152.68065869,0.00021799,2]
[372430958,1752642640052,-151.06,0.000218,2]
[372430960,1752642640061,-454.1413,0.00021817,2]
[372430962,1752642640071,-157.13513862,0.00021817,2]
[372430965,1752642640080,-177.64336511,0.00021817,2]
[372430966,1752642640090,-150.0,0.00021823,2]
[372430968,1752642640099,-150.0,0.00021838,2]
[372430970,1752642640109,-152.68065869,0.00021839,2]
[372430973,1752642640118,-447.87393831,0.00021844,2]
[372430975,1752642640129,-150.0,0.00021857,2]
[372430977,1752642640139,-150.0,0.00021858,2]
[372430978,1752642640148,-152.68065869,0.00021878,2]
[372430981,1752642640161,-150.0,0.0002188,2]
[372430983,1752642640171,-150.0,0.00021882,2]
[372430984,1752642640181,-210.72748344,0.00021892,2]
[372430986,1752642640190,-150.0,0.00021897,2]
[372430989,1752642640200,-23385.29448374,0.00021898,2]
[372431540,1752642645561,-22264.650388,0.00021898,2]
[372431547,1752642645617,-80364.64369244,0.00021898,2]
[372431549,1752642645626,-5571.57873179,0.00021898,2]
[372431551,1752642645636,-5988.95143904,0.000219,2]
[372431553,1752642645646,-862.18,0.000219,2]
[372431555,1752642645656,-2000.0,0.000219,2]
[372431557,1752642645666,-3023.91045671,0.000219,6]
[372431559,1752642645675,-224.01345879,0.00021907,2]
[372431561,1752642645685,-317.26,0.00021907,2]
[372431563,1752642645694,-317.26,0.00021907,2]
[372431565,1752642645704,-317.26,0.00021907,2]
[372431567,1752642645714,-317.26,0.00021907,2]
[372431569,1752642645723,-317.26,0.00021907,2]
[372431571,1752642645734,-262.99,0.00021907,2]
[372431573,1752642645744,-331.17,0.00021916,2]
[372431575,1752642645753,-628.66339825,0.00021916,2]
[372431577,1752642645762,-165.02294225,0.00021916,2]
[372431579,1752642645772,-171.4992818,0.00021916,2]
[372431581,1752642645782,-151.0,0.00021916,2]
[372431583,1752642645791,-7779.09,0.00021916,2]
[372431585,1752642645800,-47501.73823246,0.00021917,2]
[372431587,1752642645812,-7486.27893918,0.00021917,2]
[372431589,1752642645825,-2463.47024251,0.00021917,2]
[372431593,1752642645848,-438.76361447,0.00021917,2]
[372432815,1752642667884,321.453805,7.945e-05,2]
[372432816,1752642673584,3010.0,0.0003,120]
[372432817,1752642714911,1000.0,0.00030136,120]
[372432818,1752643037286,154.15099035,0.00021096,30]
[372432819,1752643174009,411.0693076,0.00021096,30]
[372432835,1752643552737,200.0,0.000211,30]
[372432837,1752643583983,156.65,0.00013699,2]
[372432957,1752643832372,-1113.02203179,0.000185,2]
[372433010,1752643832889,-422.27678551,0.000185,2]
[372433012,1752643832899,-976.16548945,0.000198,2]
[372433015,1752643832910,-380.03275372,0.000198,2]
[372433021,1752643832963,-254.52609085,0.000198,2]
[372433283,1752643837493,-278.58645811,0.000198,2]
[372433284,1752643837505,-922.94519387,0.000198,2]
[372433285,1752643837516,-247.82111746,0.0002,7]
[372433286,1752643837538,-279.14431029,0.0002,7]
[372433287,1752643837690,-1085.92316173,0.0002,7]
[372433288,1752643837819,-1628.45894093,0.0002,7]
[372433290,1752643837829,-190.0,0.00020585,7]
[372433292,1752643837838,-283.51,0.00020621,2]
[372433294,1752643837848,-300.0,0.00020648,2]
[372433295,1752643837858,-4310.51158427,0.00020649,2]
[372433473,1752643839630,-6627.63447899,0.00020649,2]
[372433480,1752643839691,-298.51436949,0.00020649,2]
[372433482,1752643839702,-289.15000193,0.00020649,2]
[372433484,1752643839714,-641.01223463,0.00020649,2]
[372433487,1752643839726,-894.27733069,0.00020649,2]
[372433489,1752643839735,-174.22,0.00020666,2]
[372433491,1752643839744,-1000.0,0.0002068,2]
[372433493,1752643839754,-152.0,0.00020761,3]
[372433495,1752643839763,-2976.71427365,0.000209,4]
[372433496,1752643839773,-207.4,0.00020905,2]
[372433497,1752643839782,-187.48,0.00020927,2]
[372433498,1752643839791,-1085.0,0.00021,2]
[372433499,1752643839801,-2976.71427347,0.00021003,4]
[372433500,1752643839809,-159.83339,0.000211,30]
[372433501,1752643839818,-159.83339,0.000211,30]
[372433502,1752643839827,-159.83339,0.000211,30]
[372433503,1752643839836,-159.83339,0.000211,30]
[372433504,1752643839846,-159.83342,0.000211,30]
[372433505,1752643839855,-540.04400234,0.00021107,4]
[372433508,1752643839878,-2436.67027113,0.00021107,4]
[372433510,1752643839887,-154.15099035,0.00021178,30]
[372433512,1752643839897,-410.74673328,0.00021178,30]
[372433514,1752643839908,-0.32257432,0.00021178,30]
[372433516,1752643839918,-2286.68068054,0.0002121,4]
[372433548,1752643840159,-690.03359293,0.0002121,4]
[372433553,1752643840228,-154.15099035,0.0002126,30]
[372433555,1752643840238,-411.0693076,0.0002126,30]
[372433557,1752643840249,-872.68007639,0.00021314,5]
[372433559,1752643840269,-2104.03419708,0.00021314,5]
[372433561,1752643840279,-154.15099035,0.00021342,30]
[372433563,1752643840288,-411.0693076,0.00021342,30]
[372433565,1752643840298,-677.70025915,0.00021417,5]
[372433568,1752643840310,-377.20985032,0.00021417,5]
[372433570,1752643840326,-408.41820003,0.00021417,5]
[372433572,1752643840337,-1513.38596397,0.00021417,5]
[372433574,1752643840346,-30.08773887,0.00021425,30]
[372433577,1752643840358,-124.06325148,0.00021425,30]
[372433579,1752643840367,-411.0693076,0.00021425,30]
[372433581,1752643840377,-154.15099035,0.00021507,30]
[372433583,1752643840386,-411.0693076,0.00021507,30]
[372433585,1752643840396,-2976.71427347,0.00021521,5]
[372433586,1752643840405,-168.21,0.00021524,2]
[372433588,1752643840415,-152.0,0.00021572,4]
[372433590,1752643840424,-889.0,0.00021577,2]
[372433593,1752643840435,-154.15099035,0.00021589,30]
[372433594,1752643840444,-411.0693076,0.00021589,30]
[372433597,1752643840454,-164.648037,0.00021612,8]
[372433598,1752643840463,-2976.71427347,0.00021624,5]
[372433600,1752643840473,-845.77271039,0.00021668,2]
[372433602,1752643840483,-154.15099035,0.00021671,30]
[372433605,1752643840492,-411.0693076,0.00021671,30]
[372433607,1752643840502,-700.54725277,0.00021728,5]
[372433609,1752643840513,-2276.1670207,0.00021728,5]
[372433611,1752643840523,-32.28500925,0.00021753,30]
[372433615,1752643840551,-121.8659811,0.00021753,30]
[372433617,1752643840560,-411.0693076,0.00021753,30]
[372433619,1752643840570,-150.0,0.00021788,2]
[372433621,1752643840580,-150.0,0.00021794,2]
[372433623,1752643840589,-157.13513858,0.00021817,2]
[372433625,1752643840603,-159.63678115,0.00021817,2]
[372433627,1752643840612,-195.33952371,0.00021817,2]
[372433629,1752643840621,-2976.71427347,0.00021831,6]
[372433630,1752643840630,-150.0,0.00021843,2]
[372433633,1752643840640,-195.33952366,0.00021846,2]
[372433635,1752643840650,-154.15099035,0.00021863,30]
[372433636,1752643840659,-411.0693076,0.00021863,30]
[372433638,1752643840671,-150.0,0.00021873,2]
[372433641,1752643840680,-150.0,0.00021874,2]
[372433643,1752643840691,-195.33952366,0.00021875,2]
[372433644,1752643840699,-1107.712,0.00021878,2]
[372433646,1752643840709,-210.72748344,0.00021878,2]
[372433648,1752643840718,-98.58248884,0.00021878,2]
[372433915,1752643843228,-349.29144947,0.00021878,2]
[372433917,1752643843237,-138.40075539,0.00021878,2]
[372433919,1752643843248,-21.59924461,0.00021878,2]
[372433921,1752643843257,-525.76944237,0.000219,2]
[372433923,1752643843268,-250.20055763,0.000219,2]
[372433925,1752643843278,-579.29347075,0.000219,2]
[372433927,1752643843289,-359.73856219,0.000219,2]
[372433930,1752643843308,-1060.96796706,0.000219,2]
[372433932,1752643843321,-195.33952366,0.00021903,2]
[372433934,1752643843333,-224.0134588,0.00021907,2]
[372433936,1752643843342,-101.38667625,0.00021907,2]
[372433938,1752643843353,-194.45332375,0.00021907,2]
[372433940,1752643843363,-150.0,0.00021914,2]
[372433942,1752643843373,-7454.96,0.00021916,2]
[372433944,1752643843384,-202.84068858,0.00021917,2]
[372433947,1752643843395,-654.65606349,0.00021917,2]
[372433995,1752643843868,-2862.79466737,0.00021917,2]
[372433998,1752643843884,-80485.11659381,0.00021917,2]
[372434000,1752643843893,-5061.12668262,0.00021917,2]
[372434002,1752643843903,-52350.32761282,0.00021917,2]
[372434004,1752643843912,-221.58951043,0.00021917,2]
[372434006,1752643843922,-500.0,0.00021917,2]
[372434008,1752643843931,-466.97506113,0.00021917,2]
[372434010,1752643843941,-333.51119027,0.00021917,2]
[372434012,1752643843951,-460.0,0.00021917,2]
[372434014,1752643843960,-882.06,0.00021917,2]
[372434016,1752643843970,-460.0,0.00021917,2]
[372434018,1752643843980,-460.48448806,0.00021917,2]
[372434020,1752643843989,-460.0,0.00021917,2]
[372434022,1752643843998,-460.0,0.00021917,2]
[372434024,1752643844008,-460.0,0.00021917,2]
[372434025,1752643844017,-460.0,0.00021917,2]
[372434026,1752643844027,-460.0,0.00021917,2]
[372434027,1752643844037,-460.0,0.00021917,2]
[372434028,1752643844046,-460.9747769,0.00021917,2]
[372434029,1752643844055,-460.0,0.00021917,2]
[372434030,1752643844064,-960.06,0.00021917,2]
[372434031,1752643844073,-460.0,0.00021917,2]
[372434032,1752643844082,-460.0,0.00021917,2]
[372434033,1752643844092,-460.0,0.00021917,2]
[372434035,1752643844101,-1128.99,0.00021917,2]
[372434037,1752643844110,-460.0,0.00021917,2]
[372434039,1752643844119,-460.0,0.00021917,2]
[372434041,1752643844129,-460.0,0.00021917,2]
[372434043,1752643844139,-460.0,0.00021917,2]
[372434045,1752643844148,-462.64175835,0.00021917,2]
[372434047,1752643844157,-837.34,0.00021917,2]
[372434049,1752643844167,-891.2,0.00021917,2]
[372434051,1752643844176,-460.0,0.00021917,2]
[372434053,1752643844185,-460.0,0.00021917,2]
[372434055,1752643844196,-460.0,0.00021917,2]
[372434057,1752643844205,-509.83,0.00021917,2]
[372434059,1752643844215,-460.0,0.00021917,2]
[372434061,1752643844225,-462.44915009,0.00021917,2]
[372434063,1752643844234,-1241.45,0.00021917,2]
[372434065,1752643844244,-760.61,0.00021917,2]
[372434067,1752643844253,-460.0,0.00021917,2]
[372434069,1752643844263,-320.51077576,0.00021917,2]
[372434071,1752643844272,-460.0,0.00021917,2]
[372434073,1752643844281,-460.0,0.00021917,2]
[372434075,1752643844291,-460.0,0.00021917,2]
[372434077,1752643844306,-460.0,0.00021917,2]
[372434079,1752643844315,-978.21,0.00021917,2]
[372434081,1752643844325,-460.0,0.00021917,2]
[372434083,1752643844334,-460.0,0.00021917,2]
[372434085,1752643844344,-460.0,0.00021917,2]
[372434087,1752643844353,-460.0,0.00021917,2]
[372434089,1752643844363,-460.96638621,0.00021917,2]
[372434091,1752643844372,-851.54,0.00021917,2]
[372434093,1752643844382,-170.0,0.00021917,2]
[372434095,1752643844392,-151.0,0.00021917,2]
[372434097,1752643844401,-152.37356,0.00021917,2]
[372434099,1752643844411,-1692.493095,0.00021917,2]
[372434101,1752643844421,-158.098854,0.00021917,2]
[372434103,1752643844431,-498.94413549,0.00021917,2]
[372434105,1752643844441,-460.0,0.00021917,2]
[372434107,1752643844451,-2976.892323,0.00021917,2]
[372434109,1752643844460,-3836.240941,0.00021917,2]
[372434111,1752643844470,-460.0,0.00021917,2]
[372434113,1752643844479,-460.0,0.00021917,2]
[372434115,1752643844490,-151.0,0.00021917,2]
[372434117,1752643844499,-151.0,0.00021917,2]
[372434119,1752643844509,-151.0,0.00021917,2]
[372434121,1752643844518,-151.0,0.00021917,2]
[372434123,1752643844528,-151.0,0.00021917,2]
[372434125,1752643844537,-151.0,0.00021917,2]
[372434127,1752643844547,-151.0,0.00021917,2]
[372434129,1752643844557,-151.0,0.00021917,2]
[372434131,1752643844567,-460.0,0.00021917,2]
[372434133,1752643844576,-542.83147098,0.00021917,2]
[372434135,1752643844585,-460.0,0.00021917,2]
[372434137,1752643844594,-460.0,0.00021917,2]
[372434139,1752643844604,-260.399857,0.00021917,2]
[372434141,1752643844613,-460.0,0.00021917,2]
[372434143,1752643844625,-460.0,0.00021917,2]
[372434145,1752643844635,-351.80734131,0.00021917,2]
[372434147,1752643844644,-287.58160527,0.00021917,2]
[372434149,1752643844654,-488.67,0.00021917,2]
[372434151,1752643844664,-460.0,0.00021917,2]
[372434153,1752643844674,-460.0,0.00021917,2]
[372434155,1752643844684,-460.0,0.00021917,2]
[372434157,1752643844693,-460.0,0.00021917,2]
[372434158,1752643844703,-460.0,0.00021917,2]
[372434161,1752643844714,-460.0,0.00021917,2]
[372434163,1752643844725,-460.0,0.00021917,2]
[372434164,1752643844735,-460.0,0.00021917,2]
[372434166,1752643844744,-460.0,0.00021917,2]
[372434169,1752643844754,-523.45145568,0.00021917,2]
[372434171,1752643844764,-460.0,0.00021917,2]
[372434173,1752643844773,-460.0,0.00021917,2]
[372434175,1752643844783,-462.00485349,0.00021917,2]
[372434177,1752643844793,-203.53075602,0.00021917,2]
[372434179,1752643844803,-460.0,0.00021917,2]
[372434180,1752643844813,-1138.5,0.00021917,2]
[372434183,1752643844822,-460.0,0.00021917,2]
[372434184,1752643844832,-157.80666,0.00021917,2]
[372434186,1752643844841,-460.0,0.00021917,2]
[372434188,1752643844850,-153.051353,0.00021917,2]
[372434190,1752643844859,-460.0,0.00021917,2]
[372434192,1752643844870,-211.69380891,0.00021917,2]
[372434194,1752643844880,-460.0,0.00021917,2]
[372434196,1752643844889,-460.0,0.00021917,2]
[372434199,1752643844899,-1000.47,0.00021917,2]
[372434201,1752643844908,-171.067001,0.00021917,2]
[372434202,1752643844918,-151.0,0.00021917,2]
[372434204,1752643844927,-151.0,0.00021917,2]
[372434207,1752643844937,-151.0,0.00021917,2]
[372434209,1752643844947,-151.0,0.00021917,2]
[372434210,1752643844956,-151.0,0.00021917,2]
[372434212,1752643844967,-491.52,0.00021917,2]
[372434214,1752643844977,-460.0,0.00021917,2]
[372434216,1752643844987,-460.0,0.00021917,2]
[372434218,1752643844997,-154.02629471,0.00021917,2]
[372434220,1752643845007,-460.0,0.00021917,2]
[372434222,1752643845017,-460.0,0.00021917,2]
[372434225,1752643845026,-819.6,0.00021917,2]
[372434227,1752643845037,-460.0,0.00021917,2]
[372434228,1752643845046,-460.0,0.00021917,2]
[372434230,1752643845055,-464.49465789,0.00021917,2]
[372434232,1752643845065,-460.0,0.00021917,2]
[372434234,1752643845074,-460.0,0.00021917,2]
[372434237,1752643845084,-151.0,0.00021917,2]
[372434238,1752643845093,-460.0,0.00021917,2]
[372434240,1752643845103,-460.0,0.00021917,2]
[372434242,1752643845112,-460.0,0.00021917,2]
[372434244,1752643845121,-460.0,0.00021917,2]
[372434247,1752643845131,-460.0,0.00021917,2]
[372434249,1752643845140,-460.0,0.00021917,2]
[372434251,1752643845149,-1021.42,0.00021917,2]
[372434253,1752643845159,-659.51,0.00021917,2]
[372434254,1752643845168,-460.0,0.00021917,2]
[372434256,1752643845178,-460.0,0.00021917,2]
[372434258,1752643845189,-921.97,0.00021917,2]
[372434260,1752643845198,-460.0,0.00021917,2]
[372434262,1752643845207,-460.0,0.00021917,2]
[372434264,1752643845216,-496.19,0.00021917,2]
[372434266,1752643845226,-495.73844855,0.00021917,2]
[372434268,1752643845235,-460.0,0.00021917,2]
[372434270,1752643845244,-1191.6,0.00021917,2]
[372434272,1752643845254,-735.82,0.00021917,2]
[372434274,1752643845264,-460.0,0.00021917,2]
[372434276,1752643845273,-460.0,0.00021917,2]
[372434278,1752643845282,-565.06,0.00021917,2]
[372434280,1752643845292,-460.0,0.00021917,2]
[372434282,1752643845301,-460.0,0.00021917,2]
[372434284,1752643845310,-460.0,0.00021917,2]
[372434287,1752643845321,-460.0,0.00021917,2]
[372434289,1752643845330,-263.94605078,0.00021917,2]
[372434291,1752643845339,-463.6739254,0.00021917,2]
[372434293,1752643845349,-460.0,0.00021917,2]
[372434295,1752643845358,-460.0,0.00021917,2]
[372434297,1752643845368,-460.0,0.00021917,2]
[372434299,1752643845387,-460.0,0.00021917,2]
[372434301,1752643845405,-460.0,0.00021917,2]
[372434303,1752643845415,-460.0,0.00021917,2]
[372434305,1752643845424,-620.39,0.00021917,2]
[372434307,1752643845433,-1023.59,0.00021917,2]
[372434309,1752643845443,-461.01339075,0.00021917,2]
[372434311,1752643845452,-460.0,0.00021917,2]
[372434313,1752643845463,-460.0,0.00021917,2]
[372434315,1752643845473,-1867.99,0.00021917,2]
[372434317,1752643845483,-460.0,0.00021917,2]
[372434319,1752643845493,-460.0,0.00021917,2]
[372434321,1752643845503,-460.0,0.00021917,2]
[372434324,1752643845512,-606.73,0.00021917,2]
[372434327,1752643845522,-460.0,0.00021917,2]
[372434330,1752643845531,-460.0,0.00021917,2]
[372434333,1752643845540,-460.0,0.00021917,2]
[372434335,1752643845550,-460.0,0.00021917,2]
[372434337,1752643845559,-1496.08,0.00021917,2]
[372434339,1752643845569,-621.53,0.00021917,2]
[372434341,1752643845579,-460.0,0.00021917,2]
[372434343,1752643845588,-460.0,0.00021917,2]
[372434345,1752643845597,-462.46419417,0.00021917,2]
[372434348,1752643845607,-460.0,0.00021917,2]
[372434350,1752643845617,-472.45,0.00021917,2]
[372434351,1752643845629,-460.0,0.00021917,2]
[372434353,1752643845639,-460.0,0.00021917,2]
[372434356,1752643845648,-1182.06,0.00021917,2]
[372434358,1752643845658,-1398.66,0.00021917,2]
[372434360,1752643845667,-460.0,0.00021917,2]
[372434362,1752643845677,-460.0,0.00021917,2]
[372434364,1752643845687,-1285.42,0.00021917,2]
[372434366,1752643845697,-705.69,0.00021917,2]
[372434368,1752643845706,-460.0,0.00021917,2]
[372434369,1752643845715,-460.0,0.00021917,2]
[372434371,1752643845724,-460.0,0.00021917,2]
[372434373,1752643845735,-460.0,0.00021917,2]
[372434375,1752643845744,-460.0,0.00021917,2]
[372434377,1752643845754,-462.98182609,0.00021917,2]
[372434379,1752643845763,-460.0,0.00021917,2]
[372434381,1752643845772,-500.0,0.00021917,2]
[372434383,1752643845782,-500.0,0.00021917,2]
[372434385,1752643845791,-460.0,0.00021917,2]
[372434388,1752643845801,-500.0,0.00021917,2]
[372434389,1752643845811,-500.0,0.00021917,2]
[372434392,1752643845821,-500.0,0.00021917,2]
[372434393,1752643845830,-224.65293159,0.00021917,2]
[372434396,1752643845840,-450.55758241,0.00021917,2]
[372434398,1752643845851,-460.0,0.00021917,2]
[372434400,1752643845860,-460.0,0.00021917,2]
[372434402,1752643845870,-460.0,0.00021917,2]
[372434404,1752643845880,-460.0,0.00021917,2]
[372434406,1752643845891,-460.0,0.00021917,2]
[372434407,1752643845900,-151.0,0.00021917,2]
[372434409,1752643845909,-383.47158501,0.00021917,2]
[372434412,1752643845919,-460.0,0.00021917,2]
[372434413,1752643845928,-770.16,0.00021917,2]
[372434414,1752643845938,-460.0,0.00021917,2]
[372434415,1752643845947,-995.03,0.00021917,2]
[372434416,1752643845957,-460.0,0.00021917,2]
[372434417,1752643845966,-460.0,0.00021917,2]
[372434418,1752643845975,-460.0,0.00021917,2]
[372434419,1752643845984,-460.0,0.00021917,2]
[372434420,1752643845994,-681.57,0.00021917,2]
[372434422,1752643846004,-467.02480591,0.00021917,2]
[372434424,1752643846013,-460.0,0.00021917,2]
[372434426,1752643846022,-460.0,0.00021917,2]
[372434428,1752643846032,-460.0,0.00021917,2]
[372434430,1752643846042,-595.26,0.00021917,2]
[372434432,1752643846052,-651.41,0.00021917,2]
[372434435,1752643846062,-460.0,0.00021917,2]
[372434438,1752643846071,-649.05,0.00021917,2]
[372434441,1752643846081,-151.0,0.00021917,2]
[372434443,1752643846091,-151.0,0.00021917,2]
[372434445,1752643846100,-151.0,0.00021917,2]
[372434447,1752643846110,-1439.41,0.00021917,2]
[372434449,1752643846121,-460.0,0.00021917,2]
[372434451,1752643846131,-460.0,0.00021917,2]
[372434453,1752643846141,-249.76905423,0.00021917,2]
[372434454,1752643846151,-460.0,0.00021917,2]
[372434456,1752643846160,-520.01,0.00021917,2]
[372434458,1752643846169,-1779.16,0.00021917,2]
[372434460,1752643846182,-583.45,0.00021917,2]
[372434463,1752643846193,-1826.91,0.00021917,2]
[372434465,1752643846202,-460.0,0.00021917,2]
[372434466,1752643846212,-460.0,0.00021917,2]
[372434469,1752643846222,-460.0,0.00021917,2]
[372434471,1752643846232,-805.21,0.00021917,2]
[372434473,1752643846241,-460.0,0.00021917,2]
[372434475,1752643846253,-460.0,0.00021917,2]
[372434477,1752643846263,-460.0,0.00021917,2]
[372434478,1752643846272,-460.39090928,0.00021917,2]
[372434480,1752643846282,-460.0,0.00021917,2]
[372434482,1752643846291,-151.0,0.00021917,2]
[372434485,1752643846301,-460.0,0.00021917,2]
[372434487,1752643846311,-501.19497873,0.00021917,2]
[372434489,1752643846321,-151.0,0.00021917,2]
[372434490,1752643846331,-460.0,0.00021917,2]
[372434492,1752643846340,-758.07,0.00021917,2]
[372434494,1752643846350,-460.0,0.00021917,2]
[372434497,1752643846360,-1180.93,0.00021917,2]
[372434498,1752643846370,-460.0,0.00021917,2]
[372434501,1752643846380,-460.0,0.00021917,2]
[372434502,1752643846389,-542.62,0.00021917,2]
[372434505,1752643846400,-628.09,0.00021917,2]
[372434507,1752643846409,-460.0,0.00021917,2]
[372434509,1752643846419,-460.0,0.00021917,2]
[372434511,1752643846428,-460.0,0.00021917,2]
[372434513,1752643846438,-460.0,0.00021917,2]
[372434514,1752643846448,-460.82691468,0.00021917,2]
[372434517,1752643846458,-460.0,0.00021917,2]
[372434519,1752643846467,-460.0,0.00021917,2]
[372434521,1752643846476,-460.0,0.00021917,2]
[372434523,1752643846486,-492.8,0.00021917,2]
[372434524,1752643846495,-460.0,0.00021917,2]
[372434526,1752643846505,-460.0,0.00021917,2]
[372434529,1752643846515,-414.70965486,0.00021917,2]
[372434530,1752643846524,-460.75707854,0.00021917,2]
[372434532,1752643846533,-642.41,0.00021917,2]
[372434534,1752643846543,-960.46,0.00021917,2]
[372434536,1752643846552,-1325.76,0.00021917,2]
[372434538,1752643846567,-460.0,0.00021917,2]
[372434540,1752643846576,-460.0,0.00021917,2]
[372434543,1752643846586,-461.41306093,0.00021917,2]
[372434544,1752643846595,-151.0,0.00021917,2]
[372434546,1752643846604,-151.0,0.00021917,2]
[372434549,1752643846614,-152.879025,0.00021917,2]
[372434551,1752643846624,-886.15,0.00021917,2]
[372434553,1752643846637,-460.0,0.00021917,2]
[372434555,1752643846646,-460.0,0.00021917,2]
[372434557,1752643846655,-460.0,0.00021917,2]
[372434558,1752643846665,-543.26,0.00021917,2]
[372434560,1752643846675,-460.0,0.00021917,2]
[372434562,1752643846684,-460.0,0.00021917,2]
[372434565,1752643846694,-460.0,0.00021917,2]
[372434567,1752643846705,-460.0,0.00021917,2]
[372434568,1752643846714,-600.31798939,0.00021917,2]
[372434570,1752643846724,-460.0,0.00021917,2]
[372434572,1752643846735,-460.0,0.00021917,2]
[372434574,1752643846746,-460.0,0.00021917,2]
[372434576,1752643846755,-460.0,0.00021917,2]
[372434578,1752643846764,-460.0,0.00021917,2]
[372434580,1752643846774,-460.0,0.00021917,2]
[372434582,1752643846783,-652.44,0.00021917,2]
[372434584,1752643846793,-460.0,0.00021917,2]
[372434586,1752643846804,-460.0,0.00021917,2]
[372434588,1752643846813,-460.0,0.00021917,2]
[372434590,1752643846822,-554.68,0.00021917,2]
[372434592,1752643846832,-460.0,0.00021917,2]
[372434594,1752643846842,-460.0,0.00021917,2]
[372434596,1752643846851,-460.0,0.00021917,2]
[372434598,1752643846860,-890.85,0.00021917,2]
[372434600,1752643846870,-199.64148778,0.00021917,2]
[372434602,1752643846879,-460.0,0.00021917,2]
[372434604,1752643846888,-464.27514001,0.00021917,2]
[372434606,1752643846897,-460.0,0.00021917,2]
[372434608,1752643846907,-1055.77,0.00021917,2]
[372434610,1752643846917,-460.0,0.00021917,2]
[372434612,1752643846927,-460.0,0.00021917,2]
[372434614,1752643846936,-460.0,0.00021917,2]
[372434616,1752643846945,-460.0,0.00021917,2]
[372434618,1752643846956,-151.266819,0.00021917,2]
[372434620,1752643846967,-460.0,0.00021917,2]
[372434622,1752643846976,-463.03234793,0.00021917,2]
[372434624,1752643846985,-460.0,0.00021917,2]
[372434626,1752643846994,-460.0,0.00021917,2]
[372434628,1752643847003,-530.41,0.00021917,2]
[372434630,1752643847012,-460.0,0.00021917,2]
[372434632,1752643847022,-460.0,0.00021917,2]
[372434634,1752643847031,-460.0,0.00021917,2]
[372434636,1752643847040,-460.0,0.00021917,2]
[372434638,1752643847050,-460.0,0.00021917,2]
[372434640,1752643847059,-460.0,0.00021917,2]
[372434642,1752643847068,-460.0,0.00021917,2]
[372434644,1752643847078,-2381.11,0.00021917,2]
[372434646,1752643847088,-151.0,0.00021917,2]
[372434648,1752643847097,-151.0,0.00021917,2]
[372434650,1752643847107,-843.06,0.00021917,2]
[372434652,1752643847116,-151.0,0.00021917,2]
[372434654,1752643847125,-460.0,0.00021917,2]
[372434656,1752643847134,-460.0,0.00021917,2]
[372434658,1752643847144,-158.434526,0.00021917,2]